[Event "Late-Titled-Tuesday-Blitz-October-03-2023"]
[Site "Chess.com"]
[Date "2023.10.03"]
[Round "5"]
[White "OparinGrigoriy"]
[Black "Angry_Twin"]
[Result "1/2-1/2"]
[WhiteElo "3002"]
[BlackElo "2939"]
[TimeControl "180+1"]
[EndTime "14:55:57 PDT"]
[Termination "Game drawn by stalemate"]

1. Nf3 {[%clk 0:03:00.9]} 1... Nf6 {[%clk 0:02:59.6]} 2. g3 {[%clk 0:03:01]}
2... g6 {[%clk 0:02:59.3]} 3. c4 {[%clk 0:03:01.7]} 3... c6 {[%clk 0:02:58.9]}
4. Bg2 {[%clk 0:03:02.6]} 4... Bg7 {[%clk 0:02:59]} 5. b3 {[%clk 0:03:01]} 5...
Ne4 {[%clk 0:02:57.2]} 6. d4 {[%clk 0:03:01.2]} 6... O-O {[%clk 0:02:57]} 7. Bb2
{[%clk 0:03:00.4]} 7... d5 {[%clk 0:02:57.3]} 8. O-O {[%clk 0:03:00.6]} 8... Bf5
{[%clk 0:02:55.8]} 9. e3 {[%clk 0:03:00.1]} 9... a5 {[%clk 0:02:55.2]} 10. Qe2
{[%clk 0:02:59.5]} 10... Nd7 {[%clk 0:02:50.7]} 11. Nc3 {[%clk 0:02:56.3]} 11...
Nxc3 {[%clk 0:02:50.2]} 12. Bxc3 {[%clk 0:02:57.2]} 12... Be4 {[%clk 0:02:48.7]}
13. Rfc1 {[%clk 0:02:56.9]} 13... a4 {[%clk 0:02:48.6]} 14. Bh3 {[%clk
0:02:56.7]} 14... Bxf3 {[%clk 0:02:42.8]} 15. Qxf3 {[%clk 0:02:57.6]} 15... e6
{[%clk 0:02:43.4]} 16. Bg2 {[%clk 0:02:56.8]} 16... Re8 {[%clk 0:02:41.2]} 17.
Qd1 {[%clk 0:02:52.9]} 17... Qe7 {[%clk 0:02:33.4]} 18. Rab1 {[%clk 0:02:39]}
18... axb3 {[%clk 0:02:31.7]} 19. Qxb3 {[%clk 0:02:39.9]} 19... Ra7 {[%clk
0:02:26.9]} 20. a4 {[%clk 0:02:36.1]} 20... Rea8 {[%clk 0:02:26.2]} 21. a5
{[%clk 0:02:36.4]} 21... Bf6 {[%clk 0:02:20.3]} 22. Rb2 {[%clk 0:02:28.7]} 22...
Qe8 {[%clk 0:02:19.2]} 23. Rcb1 {[%clk 0:02:28.7]} 23... Bd8 {[%clk 0:02:17.8]}
24. Qc2 {[%clk 0:02:22.5]} 24... Bxa5 {[%clk 0:01:58.2]} 25. Rxb7 {[%clk
0:02:22.7]} 25... Bxc3 {[%clk 0:01:56.6]} 26. Qxc3 {[%clk 0:02:23.6]} 26... Rxb7
{[%clk 0:01:48]} 27. Rxb7 {[%clk 0:02:24.5]} 27... Qc8 {[%clk 0:01:47.8]} 28.
Rb1 {[%clk 0:02:21.8]} 28... Qa6 {[%clk 0:01:43.9]} 29. Bf1 {[%clk 0:02:21.9]}
29... Qa4 {[%clk 0:01:39.3]} 30. c5 {[%clk 0:02:09.8]} 30... e5 {[%clk
0:01:29.6]} 31. Rb7 {[%clk 0:01:45.2]} 31... Nf6 {[%clk 0:01:28.6]} 32. dxe5
{[%clk 0:01:36.7]} 32... Ne4 {[%clk 0:01:28.7]} 33. Qd4 {[%clk 0:01:37.3]} 33...
Qxd4 {[%clk 0:00:51.9]} 34. exd4 {[%clk 0:01:38.2]} 34... Ra4 {[%clk 0:00:51.9]}
35. Rc7 {[%clk 0:01:32]} 35... Rxd4 {[%clk 0:00:49.8]} 36. Rxc6 {[%clk
0:01:32.5]} 36... Rd1 {[%clk 0:00:50.1]} 37. Kg2 {[%clk 0:01:25.8]} 37... Rd2
{[%clk 0:00:49.3]} 38. Rc8+ {[%clk 0:01:26.4]} 38... Kg7 {[%clk 0:00:48.9]} 39.
c6 {[%clk 0:01:27]} 39... Rxf2+ {[%clk 0:00:48.5]} 40. Kg1 {[%clk 0:01:27.2]}
40... Rc2 {[%clk 0:00:46.9]} 41. Bd3 {[%clk 0:01:11.2]} 41... Rc1+ {[%clk
0:00:41.3]} 42. Kg2 {[%clk 0:01:11.7]} 42... Nc5 {[%clk 0:00:40.2]} 43. Be2
{[%clk 0:01:08.2]} 43... d4 {[%clk 0:00:27.3]} 44. Rd8 {[%clk 0:01:05.2]} 44...
Ne6 {[%clk 0:00:23.1]} 45. Rd6 {[%clk 0:01:05.2]} 45... Rc2 {[%clk 0:00:23.3]}
46. Kf1 {[%clk 0:01:04.2]} 46... Ng5 {[%clk 0:00:19.3]} 47. Bd3 {[%clk
0:00:51.1]} 47... Rc3 {[%clk 0:00:19.6]} 48. Ke2 {[%clk 0:00:48.3]} 48... Ne6
{[%clk 0:00:20]} 49. Kd2 {[%clk 0:00:45]} 49... Rc5 {[%clk 0:00:17.5]} 50. Be4
{[%clk 0:00:37.4]} 50... Rxe5 {[%clk 0:00:16.2]} 51. Bd5 {[%clk 0:00:37.7]}
51... Nc7 {[%clk 0:00:16.6]} 52. Bc4 {[%clk 0:00:37.8]} 52... Re7 {[%clk
0:00:11.3]} 53. Rd7 {[%clk 0:00:32.4]} 53... Kf8 {[%clk 0:00:10.9]} 54. Rd8+
{[%clk 0:00:31.1]} 54... Ne8 {[%clk 0:00:10]} 55. Kd3 {[%clk 0:00:31.5]} 55...
Rc7 {[%clk 0:00:10.3]} 56. Bb5 {[%clk 0:00:26.1]} 56... Ke7 {[%clk 0:00:10.8]}
57. Rxd4 {[%clk 0:00:26]} 57... Nd6 {[%clk 0:00:11.5]} 58. Ba4 {[%clk
0:00:26.6]} 58... Ra7 {[%clk 0:00:11.7]} 59. Rb4 {[%clk 0:00:23.1]} 59... Kd8
{[%clk 0:00:11]} 60. Kd4 {[%clk 0:00:22.2]} 60... Kc7 {[%clk 0:00:11.5]} 61. Ke5
{[%clk 0:00:22.7]} 61... Ra5+ {[%clk 0:00:11.9]} 62. Kf6 {[%clk 0:00:22.3]}
62... Rf5+ {[%clk 0:00:12.5]} 63. Kg7 {[%clk 0:00:22.8]} 63... h5 {[%clk
0:00:12.9]} 64. Rb2 {[%clk 0:00:18]} 64... Ra5 {[%clk 0:00:09.6]} 65. Rb4 {[%clk
0:00:17.4]} 65... Rf5 {[%clk 0:00:09.7]} 66. Rf4 {[%clk 0:00:16.6]} 66... Re5
{[%clk 0:00:07.8]} 67. Rf2 {[%clk 0:00:13.9]} 67... h4 {[%clk 0:00:06.8]} 68.
gxh4 {[%clk 0:00:06.9]} 68... Re4 {[%clk 0:00:07]} 69. h5 {[%clk 0:00:07.6]}
69... gxh5 {[%clk 0:00:04.9]} 70. Bd1 {[%clk 0:00:07.7]} 70... h4 {[%clk
0:00:03]} 71. Bh5 {[%clk 0:00:06.8]} 71... Re5 {[%clk 0:00:03]} 72. Bxf7 {[%clk
0:00:06.7]} 72... Kxc6 {[%clk 0:00:03.5]} 73. Bg6 {[%clk 0:00:06.9]} 73... Kd5
{[%clk 0:00:03.2]} 74. Kf6 {[%clk 0:00:07.5]} 74... Re6+ {[%clk 0:00:03.7]} 75.
Kg5 {[%clk 0:00:07.4]} 75... Ne4+ {[%clk 0:00:03.9]} 76. Bxe4+ {[%clk
0:00:07.5]} 76... Rxe4 {[%clk 0:00:04.5]} 77. Rf8 {[%clk 0:00:06.2]} 77... Ra4
{[%clk 0:00:03.3]} 78. h3 {[%clk 0:00:05.7]} 78... Kd6 {[%clk 0:00:03]} 79. Re8
{[%clk 0:00:05.9]} 79... Kd7 {[%clk 0:00:03.3]} 80. Re3 {[%clk 0:00:06.6]} 80...
Kd6 {[%clk 0:00:03.7]} 81. Re1 {[%clk 0:00:06.9]} 81... Rb4 {[%clk 0:00:04.2]}
82. Rf1 {[%clk 0:00:07.1]} 82... Rc4 {[%clk 0:00:04.4]} 83. Rf6+ {[%clk
0:00:07.6]} 83... Ke7 {[%clk 0:00:04.7]} 84. Rh6 {[%clk 0:00:08.5]} 84... Kf7
{[%clk 0:00:05.1]} 85. Rxh4 {[%clk 0:00:09.1]} 85... Rxh4 {[%clk 0:00:05.5]} 86.
Kxh4 {[%clk 0:00:10]} 86... Kg6 {[%clk 0:00:06.4]} 87. Kg4 {[%clk 0:00:10.4]}
87... Kh6 {[%clk 0:00:07.3]} 88. h4 {[%clk 0:00:11.3]} 88... Kg6 {[%clk
0:00:08.2]} 89. h5+ {[%clk 0:00:11.9]} 89... Kh7 {[%clk 0:00:09.1]} 90. Kg5
{[%clk 0:00:12.8]} 90... Kh8 {[%clk 0:00:10]} 91. h6 {[%clk 0:00:13.7]} 91...
Kg8 {[%clk 0:00:10.9]} 92. Kg6 {[%clk 0:00:14.6]} 92... Kh8 {[%clk 0:00:11.8]}
93. h7 {[%clk 0:00:15.5]} 1/2-1/2

[Event "Late-Titled-Tuesday-Blitz-October-03-2023"]
[Site "Chess.com"]
[Date "2023.10.03"]
[Round "6"]
[White "sofaceindisguise"]
[Black "sergoy"]
[Result "0-1"]
[WhiteElo "2820"]
[BlackElo "3008"]
[TimeControl "180+1"]
[EndTime "14:59:52 PDT"]
[Termination "sergoy won by resignation"]

1. c4 {[%clk 0:02:52.4]} 1... e5 {[%clk 0:02:59.8]} 2. Nc3 {[%clk 0:02:50.8]}
2... Nf6 {[%clk 0:03:00.3]} 3. Nf3 {[%clk 0:02:51.1]} 3... Nc6 {[%clk
0:03:00.8]} 4. g3 {[%clk 0:02:51.3]} 4... d5 {[%clk 0:03:01.1]} 5. cxd5 {[%clk
0:02:51.1]} 5... Nxd5 {[%clk 0:03:02]} 6. Bg2 {[%clk 0:02:51.6]} 6... Nb6 {[%clk
0:03:02.7]} 7. O-O {[%clk 0:02:51.7]} 7... Be7 {[%clk 0:03:03.5]} 8. b3 {[%clk
0:02:52.3]} 8... O-O {[%clk 0:03:03.6]} 9. Bb2 {[%clk 0:02:52.9]} 9... Re8
{[%clk 0:03:04.3]} 10. Qc1 {[%clk 0:02:52.8]} 10... Bf8 {[%clk 0:03:03.4]} 11.
Rd1 {[%clk 0:02:53.4]} 11... Bg4 {[%clk 0:03:03.3]} 12. h3 {[%clk 0:02:47.9]}
12... Bh5 {[%clk 0:03:03.5]} 13. g4 {[%clk 0:02:37.2]} 13... Bg6 {[%clk
0:03:03.4]} 14. d4 {[%clk 0:02:36.2]} 14... exd4 {[%clk 0:03:03.3]} 15. Nb5
{[%clk 0:02:35]} 15... d3 {[%clk 0:03:03.7]} 16. exd3 {[%clk 0:02:17.8]} 16...
Nd5 {[%clk 0:03:03.9]} 17. Nc3 {[%clk 0:02:10]} 17... Ndb4 {[%clk 0:02:59.9]}
18. Ne1 {[%clk 0:01:42.2]} 18... Nd4 {[%clk 0:02:49.8]} 19. a3 {[%clk
0:01:37.6]} 19... Nbc6 {[%clk 0:02:47.2]} 20. Rb1 {[%clk 0:01:09.5]} 20... Nxb3
{[%clk 0:02:43.8]} 21. Qf4 {[%clk 0:01:08.6]} 21... Nbd4 {[%clk 0:02:44.3]} 22.
Ne4 {[%clk 0:01:07.9]} 22... Ne2+ {[%clk 0:02:44.3]} 0-1

[Event "Late-Titled-Tuesday-Blitz-October-03-2023"]
[Site "Chess.com"]
[Date "2023.10.03"]
[Round "6"]
[White "Quattroporte300"]
[Black "GMJustin"]
[Result "1-0"]
[WhiteElo "2348"]
[BlackElo "2193"]
[TimeControl "180+1"]
[EndTime "15:00:09 PDT"]
[Termination "Quattroporte300 won by resignation"]

1. e4 {[%clk 0:02:59.3]} 1... c5 {[%clk 0:02:39.1]} 2. Nf3 {[%clk 0:02:58]} 2...
e6 {[%clk 0:02:37.3]} 3. g3 {[%clk 0:02:57.6]} 3... b6 {[%clk 0:02:18.8]} 4. Bg2
{[%clk 0:02:56.9]} 4... Bb7 {[%clk 0:02:17.5]} 5. Nc3 {[%clk 0:02:56.8]} 5...
Nc6 {[%clk 0:02:12.3]} 6. O-O {[%clk 0:02:56.9]} 6... Nge7 {[%clk 0:01:44.4]} 7.
d4 {[%clk 0:02:54.7]} 7... cxd4 {[%clk 0:01:42.5]} 8. Nxd4 {[%clk 0:02:55.6]}
8... Nxd4 {[%clk 0:01:40.7]} 9. Qxd4 {[%clk 0:02:53.1]} 9... Nc6 {[%clk
0:01:40.7]} 10. Qd1 {[%clk 0:02:50.8]} 10... Bc5 {[%clk 0:01:34.9]} 11. Qg4
{[%clk 0:02:48.8]} 11... O-O {[%clk 0:01:32.5]} 12. Bf4 {[%clk 0:02:41.7]} 12...
Qf6 {[%clk 0:01:25]} 13. e5 {[%clk 0:02:35.7]} 13... Qg6 {[%clk 0:01:16.2]} 14.
Qxg6 {[%clk 0:02:34.7]} 14... fxg6 {[%clk 0:01:16.2]} 15. Rad1 {[%clk
0:02:32.7]} 15... Bd4 {[%clk 0:01:12]} 16. Bxc6 {[%clk 0:02:22.4]} 1-0

[Event "Late-Titled-Tuesday-Blitz-October-03-2023"]
[Site "Chess.com"]
[Date "2023.10.03"]
[Round "6"]
[White "ChristopherYoo"]
[Black "Kosak12"]
[Result "1-0"]
[WhiteElo "2994"]
[BlackElo "2799"]
[TimeControl "180+1"]
[EndTime "15:00:41 PDT"]
[Termination "ChristopherYoo won by resignation"]

1. e4 {[%clk 0:03:00.9]} 1... c6 {[%clk 0:02:57.5]} 2. d3 {[%clk 0:02:58.6]}
2... d5 {[%clk 0:02:57.8]} 3. Nd2 {[%clk 0:02:59.2]} 3... g6 {[%clk 0:02:56.1]}
4. Ngf3 {[%clk 0:02:58.5]} 4... Bg7 {[%clk 0:02:55.6]} 5. e5 {[%clk 0:02:58.7]}
5... f6 {[%clk 0:02:55.6]} 6. d4 {[%clk 0:02:57.8]} 6... fxe5 {[%clk 0:02:56]}
7. Nxe5 {[%clk 0:02:56.7]} 7... Nf6 {[%clk 0:02:55.9]} 8. Bd3 {[%clk 0:02:56.3]}
8... O-O {[%clk 0:02:55.7]} 9. O-O {[%clk 0:02:57]} 9... Nbd7 {[%clk 0:02:52.2]}
10. Ndf3 {[%clk 0:02:48]} 10... Ne4 {[%clk 0:02:49.6]} 11. Qe2 {[%clk
0:02:41.4]} 11... Ndf6 {[%clk 0:02:47.2]} 12. Ng5 {[%clk 0:02:33.2]} 12... Bf5
{[%clk 0:02:13.9]} 13. f3 {[%clk 0:02:31.5]} 13... Nd6 {[%clk 0:01:44.1]} 14.
Bxf5 {[%clk 0:02:15.6]} 14... Nxf5 {[%clk 0:01:45]} 15. Ne6 {[%clk 0:02:15.3]}
15... Qb6 {[%clk 0:01:45.6]} 16. c3 {[%clk 0:02:13]} 16... Rfe8 {[%clk
0:01:42.6]} 17. g4 {[%clk 0:02:05.2]} 17... Nd6 {[%clk 0:01:40.8]} 18. Bf4
{[%clk 0:02:02]} 18... a5 {[%clk 0:01:22]} 19. h4 {[%clk 0:01:49]} 19... Nf7
{[%clk 0:01:09.1]} 20. Nxf7 {[%clk 0:01:47.6]} 20... Kxf7 {[%clk 0:01:09.3]} 21.
Ng5+ {[%clk 0:01:48.2]} 1-0

[Event "Late-Titled-Tuesday-Blitz-October-03-2023"]
[Site "Chess.com"]
[Date "2023.10.03"]
[Round "6"]
[White "queen_iryna"]
[Black "venturov"]
[Result "0-1"]
[WhiteElo "2360"]
[BlackElo "2496"]
[TimeControl "180+1"]
[EndTime "15:00:52 PDT"]
[Termination "venturov won by checkmate"]

1. e4 {[%clk 0:02:58.9]} 1... Nf6 {[%clk 0:03:00.2]} 2. e5 {[%clk 0:02:58.8]}
2... Nd5 {[%clk 0:03:00.7]} 3. d4 {[%clk 0:02:59]} 3... d6 {[%clk 0:03:01.1]} 4.
c4 {[%clk 0:02:59.8]} 4... Nb6 {[%clk 0:03:01.4]} 5. exd6 {[%clk 0:03:00.6]}
5... cxd6 {[%clk 0:03:02.3]} 6. Nc3 {[%clk 0:03:01]} 6... g6 {[%clk 0:03:03]} 7.
Be3 {[%clk 0:03:01.7]} 7... Bg7 {[%clk 0:03:03.7]} 8. Rc1 {[%clk 0:03:01.7]}
8... O-O {[%clk 0:03:04.3]} 9. b3 {[%clk 0:03:02.3]} 9... Bf5 {[%clk 0:03:05]}
10. Nf3 {[%clk 0:02:56.4]} 10... Bg4 {[%clk 0:03:05.1]} 11. Be2 {[%clk
0:02:56.3]} 11... d5 {[%clk 0:03:05.3]} 12. c5 {[%clk 0:02:54.9]} 12... Nc8
{[%clk 0:03:05.7]} 13. O-O {[%clk 0:02:51.6]} 13... Nc6 {[%clk 0:03:05.4]} 14.
a3 {[%clk 0:02:49.1]} 14... e6 {[%clk 0:03:05]} 15. b4 {[%clk 0:02:49.2]} 15...
N8e7 {[%clk 0:03:04.6]} 16. b5 {[%clk 0:02:48.7]} 16... Na5 {[%clk 0:03:05.1]}
17. Qa4 {[%clk 0:02:47.2]} 17... Nf5 {[%clk 0:03:02.9]} 18. Rfd1 {[%clk
0:02:46.8]} 18... Bxf3 {[%clk 0:02:51.8]} 19. Bxf3 {[%clk 0:02:46.3]} 19... Nc4
{[%clk 0:02:52.5]} 20. Ne2 {[%clk 0:02:41.7]} 20... Ncxe3 {[%clk 0:02:45.3]} 21.
fxe3 {[%clk 0:02:42.2]} 21... Nxe3 {[%clk 0:02:46.2]} 22. Rd3 {[%clk 0:02:42.2]}
22... Nf5 {[%clk 0:02:45.6]} 23. c6 {[%clk 0:02:38.6]} 23... bxc6 {[%clk
0:02:43.3]} 24. bxc6 {[%clk 0:02:39.5]} 24... Qg5 {[%clk 0:02:38.2]} 25. c7
{[%clk 0:02:35.9]} 25... Rfc8 {[%clk 0:02:34.4]} 26. Rdc3 {[%clk 0:02:35.4]}
26... h5 {[%clk 0:02:25.5]} 27. Kf2 {[%clk 0:02:34.9]} 27... h4 {[%clk
0:02:21.3]} 28. h3 {[%clk 0:02:33.7]} 28... Ng3 {[%clk 0:02:15.1]} 29. Nxg3
{[%clk 0:02:30.8]} 29... Qxg3+ {[%clk 0:02:16]} 30. Kf1 {[%clk 0:02:30.3]} 30...
Qf4 {[%clk 0:02:12]} 31. Qc6 {[%clk 0:02:22.8]} 31... Bxd4 {[%clk 0:01:44.9]}
32. Qxa8 {[%clk 0:02:21.7]} 32... Rxa8 {[%clk 0:01:45.8]} 33. c8=Q+ {[%clk
0:02:21.7]} 33... Rxc8 {[%clk 0:01:46.5]} 34. Rxc8+ {[%clk 0:02:22.2]} 34... Kg7
{[%clk 0:01:46.6]} 35. R8c2 {[%clk 0:02:13.8]} 35... Qe3 {[%clk 0:01:36.3]} 36.
a4 {[%clk 0:02:12.4]} 36... a5 {[%clk 0:01:26.8]} 37. Rd1 {[%clk 0:02:01.6]}
37... Qg1+ {[%clk 0:01:22.9]} 38. Ke2 {[%clk 0:02:01.7]} 38... Qf2+ {[%clk
0:01:23.6]} 39. Kd3 {[%clk 0:02:01.7]} 39... Qe3# {[%clk 0:01:24.1]} 0-1

[Event "Late-Titled-Tuesday-Blitz-October-03-2023"]
[Site "Chess.com"]
[Date "2023.10.03"]
[Round "6"]
[White "Valeron87"]
[Black "Anton_Demchenko"]
[Result "0-1"]
[WhiteElo "2481"]
[BlackElo "2899"]
[TimeControl "180+1"]
[EndTime "15:01:28 PDT"]
[Termination "Anton_Demchenko won on time"]

1. e4 {[%clk 0:03:00.9]} 1... e5 {[%clk 0:02:56.3]} 2. Nf3 {[%clk 0:03:01.1]}
2... Nc6 {[%clk 0:02:56.9]} 3. d4 {[%clk 0:03:01]} 3... exd4 {[%clk 0:02:57]} 4.
Nxd4 {[%clk 0:03:01.9]} 4... Bc5 {[%clk 0:02:57.2]} 5. Nb3 {[%clk 0:03:00.4]}
5... Bb6 {[%clk 0:02:56.8]} 6. Nc3 {[%clk 0:03:00.7]} 6... d6 {[%clk 0:02:56.3]}
7. Nd5 {[%clk 0:02:59.9]} 7... Nf6 {[%clk 0:02:55.5]} 8. Nxb6 {[%clk 0:02:59.2]}
8... axb6 {[%clk 0:02:56.4]} 9. Bd3 {[%clk 0:02:59.4]} 9... O-O {[%clk
0:02:56.6]} 10. O-O {[%clk 0:02:58.7]} 10... Re8 {[%clk 0:02:57.2]} 11. Re1
{[%clk 0:02:43.6]} 11... Ne5 {[%clk 0:02:57.6]} 12. h3 {[%clk 0:02:42.8]} 12...
h6 {[%clk 0:02:51.5]} 13. Nd4 {[%clk 0:02:42]} 13... d5 {[%clk 0:02:40.6]} 14.
exd5 {[%clk 0:02:34.9]} 14... Nxd3 {[%clk 0:02:40]} 15. Rxe8+ {[%clk 0:02:31.4]}
15... Qxe8 {[%clk 0:02:38.2]} 16. Qxd3 {[%clk 0:02:25.5]} 16... Nxd5 {[%clk
0:02:33.9]} 17. Bd2 {[%clk 0:02:20.6]} 17... Bd7 {[%clk 0:02:00.1]} 0-1

[Event "Late-Titled-Tuesday-Blitz-October-03-2023"]
[Site "Chess.com"]
[Date "2023.10.03"]
[Round "6"]
[White "Msb2"]
[Black "remi04"]
[Result "1-0"]
[WhiteElo "3065"]
[BlackElo "2851"]
[TimeControl "180+1"]
[EndTime "15:01:45 PDT"]
[Termination "Msb2 won by resignation"]

1. d4 {[%clk 0:03:00.9]} 1... Nf6 {[%clk 0:03:00.2]} 2. c4 {[%clk 0:03:01]} 2...
e6 {[%clk 0:03:00.4]} 3. Nc3 {[%clk 0:03:01.7]} 3... Bb4 {[%clk 0:02:57.7]} 4.
e3 {[%clk 0:03:02.1]} 4... O-O {[%clk 0:02:56.9]} 5. Bd2 {[%clk 0:03:02.3]} 5...
d5 {[%clk 0:02:55.7]} 6. Nf3 {[%clk 0:03:02.8]} 6... b6 {[%clk 0:02:55.3]} 7.
cxd5 {[%clk 0:03:03]} 7... exd5 {[%clk 0:02:56.2]} 8. Rc1 {[%clk 0:03:03.6]}
8... a6 {[%clk 0:02:50.1]} 9. Bd3 {[%clk 0:03:03.4]} 9... Bb7 {[%clk 0:02:47.3]}
10. O-O {[%clk 0:03:03.4]} 10... Nbd7 {[%clk 0:02:46.1]} 11. Ne5 {[%clk
0:03:03]} 11... Nxe5 {[%clk 0:02:39.7]} 12. dxe5 {[%clk 0:03:03.9]} 12... Ne4
{[%clk 0:02:39.6]} 13. Nxe4 {[%clk 0:02:57]} 13... dxe4 {[%clk 0:02:30.5]} 14.
Bxb4 {[%clk 0:02:57.2]} 14... c5 {[%clk 0:02:16]} 15. Bxc5 {[%clk 0:02:48.4]}
15... bxc5 {[%clk 0:02:12.8]} 16. Bc4 {[%clk 0:02:48.9]} 16... Qe7 {[%clk
0:02:07.3]} 17. Qd6 {[%clk 0:02:44.7]} 17... Rfe8 {[%clk 0:02:04.2]} 18. Rfd1
{[%clk 0:02:45.3]} 18... Qxe5 {[%clk 0:01:13.7]} 19. Qxe5 {[%clk 0:02:46.2]}
19... Rxe5 {[%clk 0:01:13.5]} 20. Rd7 {[%clk 0:02:46.3]} 20... Bc6 {[%clk
0:01:13.8]} 21. Rxf7 {[%clk 0:02:46.3]} 21... Bd5 {[%clk 0:01:14.1]} 22. Re7
{[%clk 0:02:44.5]} 22... Rf5 {[%clk 0:01:01.3]} 23. g4 {[%clk 0:02:26.2]} 23...
Rg5 {[%clk 0:01:00.1]} 24. Rxe4 {[%clk 0:02:20.8]} 24... Bxc4 {[%clk 0:00:53.5]}
25. Rexc4 {[%clk 0:02:21.7]} 25... Rd8 {[%clk 0:00:50.2]} 26. h4 {[%clk
0:02:20.7]} 26... Rg6 {[%clk 0:00:50.4]} 27. g5 {[%clk 0:02:18.3]} 27... Rd2
{[%clk 0:00:37.7]} 28. Rxc5 {[%clk 0:02:06.4]} 28... Rxb2 {[%clk 0:00:36.8]} 29.
h5 {[%clk 0:01:56.1]} 29... Re6 {[%clk 0:00:30.3]} 30. Rf5 {[%clk 0:01:56]}
30... Re8 {[%clk 0:00:28.9]} 31. Rc7 {[%clk 0:01:56.3]} 1-0

[Event "Late-Titled-Tuesday-Blitz-October-03-2023"]
[Site "Chess.com"]
[Date "2023.10.03"]
[Round "6"]
[White "jcibarra"]
[Black "Dhaydon19"]
[Result "1-0"]
[WhiteElo "2949"]
[BlackElo "2745"]
[TimeControl "180+1"]
[EndTime "15:01:46 PDT"]
[Termination "jcibarra won by resignation"]

1. e4 {[%clk 0:03:00.9]} 1... c6 {[%clk 0:02:56.4]} 2. Nf3 {[%clk 0:03:00.3]}
2... d5 {[%clk 0:02:56.3]} 3. d3 {[%clk 0:03:00.9]} 3... Bg4 {[%clk 0:02:55.8]}
4. h3 {[%clk 0:03:00]} 4... Bxf3 {[%clk 0:02:54.1]} 5. Qxf3 {[%clk 0:03:00.2]}
5... e6 {[%clk 0:02:54.5]} 6. g3 {[%clk 0:02:57.9]} 6... Bd6 {[%clk 0:02:54.2]}
7. Bg2 {[%clk 0:02:56.3]} 7... Ne7 {[%clk 0:02:53.3]} 8. O-O {[%clk 0:02:56.9]}
8... Nd7 {[%clk 0:02:52.6]} 9. Qe2 {[%clk 0:02:57.1]} 9... O-O {[%clk
0:02:49.8]} 10. Nd2 {[%clk 0:02:56]} 10... Qc7 {[%clk 0:02:47.7]} 11. f4 {[%clk
0:02:52.5]} 11... f5 {[%clk 0:02:38.7]} 12. Nf3 {[%clk 0:02:29.9]} 12... fxe4
{[%clk 0:02:30.5]} 13. Ng5 {[%clk 0:02:25.6]} 13... Rf6 {[%clk 0:02:15.7]} 14.
dxe4 {[%clk 0:02:24.1]} 14... h6 {[%clk 0:02:05.7]} 15. e5 {[%clk 0:02:19.5]}
15... Bc5+ {[%clk 0:01:56.3]} 16. Kh2 {[%clk 0:02:17.6]} 16... Rg6 {[%clk
0:01:54.5]} 17. Nf3 {[%clk 0:02:17.4]} 17... Nf5 {[%clk 0:01:36.7]} 18. g4
{[%clk 0:02:17.3]} 18... Nd4 {[%clk 0:01:35.8]} 19. Nxd4 {[%clk 0:02:11.8]}
19... Bxd4 {[%clk 0:01:36.1]} 20. Qd3 {[%clk 0:02:11]} 20... Nxe5 {[%clk
0:01:28.2]} 21. Qxd4 {[%clk 0:01:58.4]} 21... Nxg4+ {[%clk 0:01:19.4]} 22. hxg4
{[%clk 0:01:56.6]} 22... Rxg4 {[%clk 0:01:19.9]} 23. Bh3 {[%clk 0:01:53.6]}
23... Rh4 {[%clk 0:01:16.1]} 24. Be3 {[%clk 0:01:43.7]} 24... Qf7 {[%clk
0:01:03.3]} 25. Rg1 {[%clk 0:01:40.7]} 25... e5 {[%clk 0:00:55.5]} 26. Qxe5
{[%clk 0:01:37.5]} 26... Re8 {[%clk 0:00:54.3]} 27. Rxg7+ {[%clk 0:01:34.5]}
27... Qxg7 {[%clk 0:00:49.4]} 28. Qxe8+ {[%clk 0:01:32.7]} 28... Kh7 {[%clk
0:00:49.3]} 29. Rg1 {[%clk 0:01:25.4]} 1-0

[Event "Late-Titled-Tuesday-Blitz-October-03-2023"]
[Site "Chess.com"]
[Date "2023.10.03"]
[Round "6"]
[White "BeanScreen"]
[Black "maxip32"]
[Result "1-0"]
[WhiteElo "2723"]
[BlackElo "2544"]
[TimeControl "180+1"]
[EndTime "15:01:49 PDT"]
[Termination "BeanScreen won by resignation"]

1. e4 {[%clk 0:03:00.9]} 1... e5 {[%clk 0:02:59.6]} 2. Nf3 {[%clk 0:03:00.8]}
2... Nf6 {[%clk 0:02:59.8]} 3. Nxe5 {[%clk 0:02:59.2]} 3... d6 {[%clk
0:03:00.4]} 4. Nf3 {[%clk 0:02:59.2]} 4... Nxe4 {[%clk 0:03:00.9]} 5. Nc3 {[%clk
0:02:59.5]} 5... Nf6 {[%clk 0:02:58]} 6. d4 {[%clk 0:02:58.6]} 6... Be7 {[%clk
0:02:57.5]} 7. Bg5 {[%clk 0:02:57.3]} 7... O-O {[%clk 0:02:58.4]} 8. Qd2 {[%clk
0:02:56.6]} 8... a6 {[%clk 0:02:52.2]} 9. O-O-O {[%clk 0:02:55.3]} 9... b5
{[%clk 0:02:52.1]} 10. Bd3 {[%clk 0:02:54.9]} 10... Bb7 {[%clk 0:02:44.4]} 11.
h4 {[%clk 0:02:54]} 11... Nbd7 {[%clk 0:02:41.8]} 12. h5 {[%clk 0:02:43.9]}
12... Ng4 {[%clk 0:02:32.9]} 13. Bxe7 {[%clk 0:02:00.3]} 13... Qxe7 {[%clk
0:02:33.8]} 14. Bf5 {[%clk 0:01:58.9]} 14... Bxf3 {[%clk 0:02:19.3]} 15. gxf3
{[%clk 0:01:57.5]} 15... Ngf6 {[%clk 0:02:06.6]} 16. Rde1 {[%clk 0:01:57.1]}
16... Qd8 {[%clk 0:02:06.3]} 17. Rhg1 {[%clk 0:01:48.4]} 17... Kh8 {[%clk
0:02:03.5]} 18. Ne4 {[%clk 0:00:54.9]} 18... Nxe4 {[%clk 0:01:36.9]} 19. Bxe4
{[%clk 0:00:55.8]} 19... Rb8 {[%clk 0:01:32.4]} 20. Rxg7 {[%clk 0:00:55.5]}
20... f5 {[%clk 0:01:03.5]} 21. Qh6 {[%clk 0:00:52.1]} 21... Nf6 {[%clk
0:00:57.3]} 22. Bxf5 {[%clk 0:00:52]} 1-0